Cogmind - Beta 13 @@@ ROGUE MODE // 2024.04.07 @ 11:36:19 Player: demon Result: Destroyed by as-39881 with Assembled Blade Performance ------------- Evolutions (0) 0 Regions Visited (4) 800 Robots Destroyed (13) 65 Value Destroyed (349) 349 Prototype IDs (0) 0 Alien Tech Used (0) 0 Bonus (0) 0 TOTAL SCORE: 1214 Bonus ------- None Cogmind --------- Core Integrity 0/250 Matter 265/300 Energy 36/100 System Corruption 0% Temperature Hot (279) Movement Core (150) Ox2 Location -9/Mines Parts ------- > --- POWER (1) -------- (None) > --- PROPULSION (2) --- (None) > --- UTILITY (2) ------ Signal Interpreter ECM Suite > --- WEAPON (2) ------- Particle Gun Particle Gun > --- INVENTORY (5) ---- Light Ion Engine Aluminum Leg Peak State ------------ > --- POWER ------------ Light Nuclear Core > --- PROPULSION ------- Wheel Flight Unit > --- UTILITY ---------- Signal Interpreter ECM Suite > --- WEAPON ----------- Assault Rifle Light Assault Rifle > --- INVENTORY -------- Light Ion Engine Particle Gun Light Assault Rifle [Rating: 9] Favorites ----------- Power Light Ion Engine Engine Light Ion Engine Power Core Light Nuclear Core Propulsion Hover Unit Leg Aluminum Leg Wheel Wheel Hover Unit Hover Unit Flight Unit Flight Unit Utility Light Armor Plating Device Sensor Array Storage Small Storage Unit Processor Signal Interpreter Protection Light Armor Plating Weapon Light Assault Rifle Energy Gun Particle Gun Ballistic Gun Light Assault Rifle Build | -11 -10 -10 -10 -9 ------- Run | Yrd Mat Min Exi Min Slots Evolved . | . . . . . Power . | . . . . . Propulsion . | . . . . . Utility . | . . . . . Weapon . | . . . . . Parts Attached 39 | 7 13 2 . 17 Power 5 | 1 1 . . 3 Engine 3 | 1 1 . . 1 Core 2 | . . . . 2 Reactor . | . . . . . Propulsion 20 | 3 6 2 . 9 Treads . | . . . . . Leg 5 | 2 2 . . 1 Wheel 6 | 1 . 1 . 4 Hover 5 | . 4 1 . . Flight 4 | . . . . 4 Utility 5 | 1 2 . . 2 Device 2 | . 1 . . 1 Storage 1 | 1 . . . . Processor 1 | . . . . 1 Hackware . | . . . . . Protection 1 | . 1 . . . Artifact . | . . . . . Weapon 9 | 2 4 . . 3 Energy Gun 2 | . . . . 2 Energy Cannon . | . . . . . Ballistic Gun 7 | 2 4 . . 1 Ballistic Cannon . | . . . . . Launcher . | . . . . . Special Weapon . | . . . . . Impact Weapon . | . . . . . Slashing Weapon . | . . . . . Piercing Weapon . | . . . . . Special Melee Weapon . | . . . . . Unidentified Prototypes . | . . . . . Parts Lost 9 | . . . . 9 Power 2 | . . . . 2 Propulsion 2 | . . . . 2 Utility 2 | . . . . 2 Weapon 3 | . . . . 3 Highest Loss Streak 6 | . . . . 6 To Critical Strikes . | . . . . . Average Slot Usage (%) 97 | . 93 100 100 95 Engine 11 | . 14 14 14 6 Core 2 | . . . . 7 Leg 6 | . 22 . . 7 Wheel 2 | . . . . 8 Hover 15 | . 5 28 28 2 Flight 2 | . . . . 7 Device 11 | . 2 14 14 13 Storage 1 | . 11 . . . Processor 2 | . . . . 8 Protection 9 | . 7 14 14 4 Ballistic Gun 27 | . 28 28 28 25 Naked Turns . | . . . . . Heaviest Build 16 | 13 16 10 10 10 Greatest Support 20 | 20 20 12 12 12 Greatest Overweight (x) 1 | . . . . 1 Average Overweight (x) . | . . . . . Largest Inventory Capacity 8 | 8 8 5 5 5 Average Capacity 5 | 7 7 5 5 5 Most Carried 8 | 6 8 5 5 5 Average Carried 4 | 3 5 5 5 4 Final Capacity 8 | 8 5 5 5 5 Final Carried 5 | 4 5 5 5 2 Class Distribution -------------------- 63% | Scavenger-Mutant 36% | Mutant Dominant Class ---------------- Mutant | -10/Materials Scavenger-Mutant | -10/Mines Scavenger-Mutant | -10/Exiles Mutant | -9/Mines Resources | -11 -10 -10 -10 -9 ----------- Run | Yrd Mat Min Exi Min Matter Collected 616 | 199 64 23 . 330 Remotely . | . . . . . Salvage Created 427 | . 54 . . 373 Parts 35 | . 11 . . 24 Haulers Intercepted . | . . . . . Recyclers Shooed . | . . . . . Parts Field Recycled . | . . . . . Retrieved Matter . | . . . . . Parts Self-Destructed . | . . . . . Prevented . | . . . . . Kills | -11 -10 -10 -10 -9 ------- Run | Yrd Mat Min Exi Min Combat Hostiles Destroyed 14 | . 2 . . 12 Guns 14 | . 2 . . 12 Classes Destroyed 5 | . 2 . . 3 Watcher 1 | . 1 . . . Swarmer 5 | . 2 . . 3 Grunt 6 | . . . . 6 Demolisher 1 | . . . . 1 Assembled 2 | . . . . 2 Best Kill Streak 3 | . 2 . . 3 Combat Bots Only 3 | . 2 . . 3 Max Kills in Single Turn 2 | . 2 . . 1 Gunslinging 1 | . 1 . . . Exploded . | . . . . . Melee . | . . . . . Uniques/NPCs Destroyed . | . . . . . Combat | -11 -10 -10 -10 -9 -------- Run | Yrd Mat Min Exi Min Hostile Shots Fired 94 | . 4 6 . 84 Missed 28 | . 1 5 . 22 Damage Taken 1039 | . 28 16 . 995 Core 276 | . . . . 276 Absorbed by Shields . | . . . . . Core Remaining (%) 100 | 100 . . . . Volleys Fired 40 | . 4 . . 36 Largest 2 | . 2 . . 2 Hottest 130 | . 40 . . 130 Shots Fired 73 | . 8 . . 65 Gun 73 | . 8 . . 65 Cannon . | . . . . . Launcher . | . . . . . Special . | . . . . . Kinetic 62 | . 8 . . 54 Thermal 11 | . . . . 11 Explosive . | . . . . . Electromagnetic . | . . . . . Robot Hit Streak 6 | . 2 . . 6 Robot Miss Streak 7 | . 2 . . 7 Penetration Max . | . . . . . Secondary Targets 5 | . 1 . . 4 Max Gunslinging Chain 1 | . 1 . . 1 Shots Hit Robots 42 | . 3 . . 39 Core Hits 26 | . 3 . . 23 Critical Kills 1 | . . . . 1 Critical Parts Destroyed . | . . . . . Critical Strikes 1 | . . . . 1 Destroy 1 | . . . . 1 Melee Attacks . | . . . . . Impact . | . . . . . Slashing . | . . . . . Piercing . | . . . . . Sneak Attacks . | . . . . . Combat Hostiles . | . . . . . Follow-up Attacks . | . . . . . Damage Inflicted 479 | . 43 . . 436 Guns 479 | . 43 . . 436 Cannons . | . . . . . Explosions . | . . . . . Melee . | . . . . . Ramming . | . . . . . Kinetic 374 | . 43 . . 331 Thermal 105 | . . . . 105 Explosive . | . . . . . Electromagnetic . | . . . . . Impact . | . . . . . Slashing . | . . . . . Piercing . | . . . . . Highest Corruption . | . . . . . Average Corruption . | . . . . . Corruption Purged . | . . . . . Corruption Blocked . | . . . . . Overload Shots . | . . . . . Overflow Damage . | . . . . . Projectiles . | . . . . . Explosions . | . . . . . Melee . | . . . . . Knockbacks . | . . . . . Impact . | . . . . . Kinetic . | . . . . . Secondary . | . . . . . Self-Inflicted Damage . | . . . . . Shots . | . . . . . Rammed . | . . . . . Targets Rammed . | . . . . . Kicked . | . . . . . Crushed . | . . . . . Highest Temperature 279 | . 12 . . 279 Average Temperature 40 | . 5 . . 44 Received Heat Transfer 247 | . 6 . . 241 Siege Activations . | . . . . . Robots Corrupted . | . . . . . Combat Hostiles . | . . . . . Parts Fried . | . . . . . Impact Corruptions . | . . . . . Robots Melted . | . . . . . Combat Hostiles . | . . . . . Parts Melted 1 | . . . . 1 Heat Transferred 259 | . . . . 259 Parts Sabotaged . | . . . . . Parts Stolen . | . . . . . Parts Stripped . | . . . . . Power Chain Reactions . | . . . . . Alert | -11 -10 -10 -10 -9 ------- Run | Yrd Mat Min Exi Min Peak Influence 190 | . 47 108 . 190 Initial 18 | . . 18 . . Average 64 | . 13 48 . 115 Maximum Alert Level . | . . . . . Low Security (%) 100 | 100 100 100 . 100 Level 1 . | . . . . . Level 2 . | . . . . . Level 3 . | . . . . . Level 4 . | . . . . . Level 5 . | . . . . . High Security . | . . . . . Max Security . | . . . . . Squads Dispatched 2 | . 2 . . . Investigation 1 | . 1 . . . Extermination . | . . . . . Reinforcement 1 | . 1 . . . Assault . | . . . . . Garrison . | . . . . . Intercept . | . . . . . Searches Triggered . | . . . . . Construction Impeded . | . . . . . Haulers Reinforced . | . . . . . Active Scanning Responses . | . . . . . Cargo Convoy Interrupts . | . . . . . Stealth | -11 -10 -10 -10 -9 --------- Run | Yrd Mat Min Exi Min Distress Signals 3 | . 2 . . 1 Communications Jammed . | . . . . . Distress Signals . | . . . . . Times Spotted 42 | . 10 4 . 28 Peak Tracking Total 14 | . 7 2 . 14 Tactical Retreats 2 | . . 1 . 1 Traps | -11 -10 -10 -10 -9 ------- Run | Yrd Mat Min Exi Min Traps Triggered 1 | . 1 . . . Indirectly . | . . . . . Trap Hack Attempts . | . . . . . Triggered . | . . . . . Disarmed . | . . . . . Reprogrammed . | . . . . . Reused . | . . . . . Traps Extracted . | . . . . . Installed . | . . . . . Triggered . | . . . . . Machines | -11 -10 -10 -10 -9 ---------- Run | Yrd Mat Min Exi Min Machines Disabled . | . . . . . Max in Single Turn . | . . . . . Machines Repaired . | . . . . . Machines Dismantled . | . . . . . Machines Sabotaged . | . . . . . Overloaded Fab Kills . | . . . . . Hacking | -11 -10 -10 -10 -9 --------- Run | Yrd Mat Min Exi Min Machines Accessed 6 | . 2 . 4 . Terminals 1 | . 1 . . . Fabricators . | . . . . . Repair Stations . | . . . . . Recycling Units 1 | . 1 . . . Scanalyzers . | . . . . . Garrison Access . | . . . . . Total Hacks 8 | . 4 . 4 . Successful 8 | . 4 . 4 . Failed . | . . . . . Catastrophic . | . . . . . Database Lockouts . | . . . . . Manual . | . . . . . Terminals 2 | . 2 . . . Fabricators . | . . . . . Repair Stations . | . . . . . Recycling Units 2 | . 2 . . . Scanalyzers . | . . . . . Garrison Access . | . . . . . Terminal Hacks 6 | . 2 . 4 . Record 4 | . . . 4 . Emergency Access Points 1 | . 1 . . . Alert Level 1 | . 1 . . . Fabricator Hacks . | . . . . . Repair Station Hacks . | . . . . . Recycling Unit Hacks 2 | . 2 . . . Report Inventory 1 | . 1 . . . Retrieve Components 1 | . 1 . . . Scanalyzer . | . . . . . Garrison Access Hacks . | . . . . . Unauthorized Hacks . | . . . . . Terminals . | . . . . . Fabricators . | . . . . . Repair Stations . | . . . . . Recycling Units . | . . . . . Scanalyzers . | . . . . . Garrison Access . | . . . . . Data Cores Recovered . | . . . . . Used . | . . . . . Hacking Detections 1 | . 1 . . . Full Trace Events . | . . . . . Feedback Events . | . . . . . Feedback Blocked . | . . . . . Robot Schematics Acquired . | . . . . . Robots Built . | . . . . . Authchips . | . . . . . Time . | . . . . . Total Robot Build Rating . | . . . . . Part Schematics Acquired . | . . . . . Parts Built . | . . . . . Authchips . | . . . . . Time . | . . . . . Total Part Build Rating . | . . . . . Parts Repaired . | . . . . . Time . | . . . . . Parts Recycled . | . . . . . Recycled Matter . | . . . . . Retrieved Matter . | . . . . . Retrieved Components 3 | . 3 . . . Parts Scanalyzed . | . . . . . Part Schematics Acquired . | . . . . . Parts Damaged . | . . . . . Bothacking | -11 -10 -10 -10 -9 ------------ Run | Yrd Mat Min Exi Min Used RIF Installer . | . . . . . Robots Hacked . | . . . . . Non-combat . | . . . . . Combat . | . . . . . Robot Hacks Applied . | . . . . . Relay Couplers Released . | . . . . . Fabnet Peak Effective % . | . . . . . Robots Rewired . | . . . . . Allies Hacked . | . . . . . Hacks Repelled . | . . . . . Allies | -11 -10 -10 -10 -9 -------- Run | Yrd Mat Min Exi Min Total Allies . | . . . . . Largest Group . | . . . . . Highest-Rated Group . | . . . . . Highest-Rated Ally . | . . . . . Total Orders . | . . . . . Ally Attacks . | . . . . . Total Damage . | . . . . . Kills . | . . . . . Allies Corrupted . | . . . . . Allies Melted . | . . . . . Intel | -11 -10 -10 -10 -9 ------- Run | Yrd Mat Min Exi Min Robot Analysis Total . | . . . . . Derelict Logs Recovered 2 | . . 1 . 1 Drone Launches . | . . . . . Drone Recoveries . | . . . . . Exploration | -11 -10 -10 -10 -9 ------------- Run | Yrd Mat Min Exi Min Turns Passed 1327 | 53 223 402 234 415 Spaces Moved 1596 | 36 183 650 418 309 Core 7 | 7 . . . . Treads . | . . . . . Legs 137 | 17 120 . . . Wheels 214 | 12 . . . 202 Hover 1175 | . 63 650 418 44 Flight 63 | . . . . 63 Fastest Speed 50 | 50 56 56 56 56 Average Speed 67 | 99 97 56 56 84 Slowest Speed 120 | 120 120 56 56 120 Overloaded Moves . | . . . . . Propulsion Burnouts . | . . . . . Robots Hopped . | . . . . . Cave-ins Triggered . | . . . . . Exploration Rate (%) 56 | 3 36 93 89 62 Regions Visited 4 Branch Regions 3 Pre-discovered Areas . | . . . . . Known Exits Taken . | . . . . . Unknown Exits Taken 4 | 1 1 1 1 . Scrap Searched 1 | . . 1 . . Spaces Dug . | . . . . . Terrain Destroyed . | . . . . . Melee . | . . . . . Projectile . | . . . . . AOE . | . . . . . Terrain Rammed . | . . . . . Walls Destroyed . | . . . . . Machines Disabled . | . . . . . Actions | -11 -10 -10 -10 -9 --------- Run | Yrd Mat Min Exi Min Total 1779 | 52 217 686 417 407 Wait 63 | . 2 35 . 26 Move 1592 | 35 182 649 417 309 Hop . | . . . . . Pick Up 30 | 10 9 . . 11 Fast Attach . | . . . . . Attach 18 | 6 2 . . 10 Detach . | . . . . . Swap 21 | 1 11 2 . 7 Drop 15 | . 7 . . 8 Fire 40 | . 4 . . 36 Melee . | . . . . . Ram . | . . . . . Kick . | . . . . . Crush . | . . . . . Escape Stasis . | . . . . . Rewire . | . . . . . Trap . | . . . . . Miscellaneous . | . . . . . Route ------- -11/Scrapyard -10/Materials -10/Mines (discovered 2 exits: [*Mat] / *Exi) -10/Exiles -9/Mines (discovered 1 exit: [*Mat]) History --------- Turn | Location | Event 8 | -11/Scrapyard | Discovered new exit (range 16) 54 | -11/Scrapyard | Entered Materials 266 | -10/Materials | Discovered new exit (range 15) 277 | -10/Materials | Entered Mines 334 | -10/Mines | Discovered new exit (range 6) 425 | -10/Mines | YI-UF0 nonchalantly dropped a Grenade Launcher on the ground 507 | -10/Mines | Learned Materials stockpile data 514 | -10/Mines | A weapon hastily lodged in a ceiling crevice suddenly fell to the ground 530 | -10/Mines | Build established: Scavenger-Mutant 676 | -10/Mines | Deemed a non-threat by the Exiles lab entrance 676 | -10/Mines | Discovered new exit (range 5) 679 | -10/Mines | Entered Exiles 679 | -10/Exiles | Found Exiles lab abandoned 906 | -10/Exiles | Discovered new exit (range 14) 913 | -10/Exiles | Entered Mines 1257 | -9/Mines | Discovered new exit (range 11) 1263 | -9/Mines | Assembled infested the area 1268 | -9/Mines | Assisted by a Guerilla fighting off Assembled 1283 | -9/Mines | Learned Materials terminal intel 1298 | -9/Mines | Core integrity fell below 50% 1300 | -9/Mines | Core integrity fell below 20% 1328 | -9/Mines | Destroyed by as-39881 with Assembled Blade Last Messages --------------- as-36142 destroyed. The unstable cave ceiling collapses. as-88139 destroyed. as-46440 destroyed. Launcher Guidance Computer melted. D-53 Grenadier destroyed. as-13757 destroyed. K-01 Serf collects debris. D-53 Grenadier destroyed. The unstable cave ceiling collapses. K-01 Serf destroyed. Lgt. Assault Rifle destroyed. as-33614 destroyed. Switching to secondary target: as-39881. Aluminum Leg destroyed. Wheel destroyed. as-48576 destroyed. Switching to secondary target: as-39881. The unstable cave ceiling collapses. Ion Engine destroyed. Map ----- +----------------------------------------------------+ | ???????????????????????????????????????????????# | | ???????????????????????????????????????????????## | | ????????????????????????????????????????????????## | | ?????????????????????????????????????????????????# | | ?????????????????????????????????????????????????# | | ?????????????????????????????????????????????????# | | ?????????????????????????????????????????????##??# | | ?????????????????????????????????????? ### ? | | ????????????????????##???????????????? | | ????????????????????# ???????????????????????# | | ?????????????######## ???????????????????????# | | ?????????????# a?????????????????????# | | ????????????# ??????###????????????# ? | | ????????????# # ???### # #??????????##### | | ????????????# < # ### #?????????????# | | ???????????# !% %% ??????????????# | | ??????????? =%= ??#????????????# | | ??????????" * # #??# ???????????# | | ????????????? % #??# ???????????# | | ???????????????????# # % #??# #??????????# | | ???????????????????## %] #?## ####?????## | | ????????????????#### ! #?# ##???## | | ????????????????#g !% #??# ##?## | | ????????????????#g = ##????# ### | | ????????????????#g a #??????# | | ????????????????##### @ #???????# | | ????????????????????#### ####???????### ## | | ???????????????????????# #????????????# ### | | ???????????????????????# #????????????# #?# | | ?????????????????####### #????????????# #?## | | ?????????????????# #????????##### #??##### | | ?????????????????# ########????????# #??????# | | ?????????????????# #???????????????# #??????# | | ????????????????## ################# #####??????# | | ???????????????## #??????????# | | ???????????????# ####################??????????? | | ??????????????# #?????????????????????????????? | | ?????????????# ##?????????????????????????????? | | ???????????? ##??????????????????????????????? | | ??????????< #????????????????????????????????? | | ?????????# #?????????????????????????????????? | | ?????????######??????????????????????????????????? | | ?????????????????????????????????????????????????? | | ?????????????????????????????????????????????????? | | ?????????????????????????????????????????????????? | | ?????????????????????????????????????????????????? | | | | | | | | | +----------------------------------------------------+ Best States ------------- Heat Dissipation 25 Energy Generation 14 Energy Capacity 250 Matter Stores 279 Matter Capacity 300 Sight Range 16 Robot Scan Range 14 Terrain Scan Density 10 ECM Strength 1 Armor Coverage 150 Evasion (%) 55 Item Schematics ----------------- None Robot Schematics ------------------ None Fabricated ------------ Nothing Alien Tech Used ----------------- None Achievements -------------- None Challenges ------------ None Game ------ Seed ImpactEfficiencyFragment Manual? 0 Play Time 00:21:39 Cumulative 4.9 hours Start 2024.04.07 @ 11:16:09 End 2024.04.07 @ 11:36:19 Sessions 1 Manual Loads 0 Difficulty Rogue Special Mode None Game No. 8 Rogue 8 Adventurer 0 Explorer 0 Win Type - Total 0 Types 0/0/0/0/0/0/0/0/0 Lore% 11 Gallery% 10 Achievement% 8 Wizard Run 0 Options --------- Layout 1 ASCII 0 Keyboard 0 Movement Arrows Keybinds 0 Fullscreen 1 Font 24/Smallcaps Map View 50x35 Zoom Use 0% Tactical HUD 0 Map Filters NONE Filters NONE Steam 1 RUN: 1ce09bc1-a55c-434b-b961-37c8a6f77e6a